bitfinex/quotes_SOLUSD_20260113
["timestamp","ask_amount","ask_price","bid_price","bid_amount"]
[1768295050423,0.66551946,141.58,141.53,0.70119124]
[1768295050617,0.66551946,141.58,141.53,6.17494181]
[1768295051139,25.43682569,141.59,141.54,0.70119124]
[1768295051140,12.53682569,141.59,141.54,0.70119124]
[1768295051320,13.20157597,141.6,141.55,0.70119124]
[1768295051524,0.66551946,141.62,141.57,0.70119124]
[1768295052047,0.66551946,141.62,141.58,5.47375057]
[1768295052234,0.66551946,141.62,141.57,0.70119124]
[1768295052435,0.66551946,141.62,141.56,7.76500113]
[1768295052656,0.66551946,141.62,141.57,5.47375057]
[1768295052853,0.29960457,141.61,141.56,7.76500113]
[1768295053042,0.30322712,141.59,141.55,19.96447904]
[1768295053360,0.30322712,141.59,141.55,12.9]
[1768295054541,15.96514443,141.6,141.55,13.5825769]
[1768295054742,16.27500276,141.6,141.55,13.5825769]
[1768295055250,16.27500276,141.6,141.55,0.6825769]
[1768295055251,8.90257221,141.58,141.55,0.6825769]
[1768295055453,0.64832476,141.57,141.53,20.64806721]
[1768295055633,8.90257221,141.58,141.54,0.6825769]
[1768295055835,7.71794294,141.59,141.54,0.6825769]
[1768295056132,7.71794294,141.59,141.53,12.9]
[1768295056133,0.65170908,141.57,141.53,12.9]
[1768295056334,9.21584905,141.56,141.52,0.6825769]
[1768295057439,8.90257221,141.54,141.5,0.6825769]
[1768295058132,8.90257221,141.54,141.5,7.74961684]
[1768295058536,8.90257221,141.53,141.5,0.6825769]
[1768295058738,9.21919953,141.54,141.5,0.6825769]
[1768295058939,0.30985833,141.55,141.5,7.74940224]
[1768295059250,9.21243054,141.55,141.5,7.74940224]
[1768295059449,9.21243054,141.55,141.51,0.6825769]
[1768295060051,16.27709533,141.55,141.51,0.6825769]
[1768295060256,9.21243054,141.55,141.51,0.6825769]
[1768295060449,7.71892247,141.57,141.52,0.6825769]
[1768295060656,8.90257221,141.57,141.52,0.6825769]
[1768295060848,15.96648057,141.57,141.52,0.6825769]
[1768295061049,8.90257221,141.56,141.52,0.6825769]
[1768295061257,15.96648057,141.57,141.52,0.6825769]
[1768295061955,16.61818965,141.57,141.52,0.6825769]
[1768295062256,15.96648057,141.57,141.53,0.6825769]
[1768295062756,7.06390836,141.57,141.53,0.6825769]
[1768295063076,8.90257221,141.56,141.53,0.6825769]
[1768295063448,9.55428129,141.57,141.53,0.6825769]
[1768295064062,8.90257221,141.57,141.53,0.6825769]
[1768295065245,8.90257221,141.57,141.53,7.74803388]
[1768295065444,21.80257221,141.6,141.53,7.74803388]
[1768295065445,0.65516212,141.6,141.55,0.6825769]
[1768295065655,17.65472191,141.61,141.54,7.74766916]
[1768295065656,8.90257221,141.58,141.54,7.74766916]
[1768295066054,7.37260348,141.59,141.54,7.74766916]
[1768295066367,16.27517569,141.59,141.54,7.74766916]
[1768295066536,16.27517569,141.59,141.52,13.5825769]
[1768295066537,8.90257221,141.57,141.52,13.5825769]
[1768295066742,0.65170908,141.58,141.53,0.6825769]
[1768295066743,8.90257221,141.56,141.53,0.6825769]
[1768295067248,9.21584905,141.57,141.53,0.6825769]
[1768295068052,16.27953982,141.57,141.53,0.6825769]
[1768295068570,9.55089697,141.56,141.52,12.9]
[1768295069144,9.55089697,141.56,141.52,0.6825769]
[1768295070968,9.55089697,141.56,141.51,15.96905097]
[1768295071158,9.55089697,141.56,141.52,0.6825769]
[1768295071975,16.61513211,141.56,141.52,0.6825769]
[1768295072363,8.90257221,141.55,141.51,0.6825769]
[1768295072956,8.90257221,141.55,141.51,7.74911013]
[1768295073349,0.31662732,141.55,141.49,0.6825769]
[1768295073547,8.90257221,141.53,141.49,0.6825769]
[1768295073763,8.90257221,141.52,141.49,0.6825769]
[1768295073969,8.90257221,141.53,141.49,0.6825769]
[1768295074153,8.90257221,141.52,141.49,0.6825769]
[1768295074353,8.90257221,141.53,141.49,0.6825769]
[1768295074956,8.90257221,141.52,141.49,0.6825769]
[1768295076351,0.31991113,141.53,141.49,7.75021104]
[1768295076565,0.70596561,141.55,141.5,0.72413002]
[1768295076766,8.90257221,141.54,141.5,0.72413002]
[1768295077264,16.22730831,141.54,141.5,0.72413002]
[1768295077466,10.5231955,141.54,141.5,0.72413002]
[1768295078443,10.26363262,141.54,141.5,0.72413002]
[1768295078866,7.06517322,141.54,141.5,0.72413002]
[1768295079174,3.45802228,141.56,141.51,0.72413002]
[1768295079953,10.52225907,141.56,141.51,7.7906959]
[1768295080367,0.70596561,141.58,141.54,0.72413002]
[1768295081376,10.9676563,141.58,141.54,0.72413002]
[1768295081672,0.70596561,141.58,141.54,0.72413002]
[1768295081973,0.25956288,141.59,141.55,0.72413002]
[1768295082179,7.32221904,141.59,141.55,0.72413002]
[1768295082361,7.76820173,141.6,141.55,7.78867012]
[1768295082564,10.96666113,141.6,141.55,0.72413002]
[1768295082774,3.45802228,141.59,141.55,0.72413002]
[1768295085089,45.18032923,141.64,141.58,0.72413002]
[1768295085090,7.7666166,141.63,141.58,0.72413002]
[1768295085471,0.25956288,141.62,141.58,0.72413002]
[1768295085986,10.25911039,141.63,141.58,0.72413002]
[1768295086488,7.06029891,141.64,141.59,3.92258942]
[1768295086664,7.06029891,141.64,141.6,0.72413002]
[1768295087065,20.84787647,141.65,141.6,0.72413002]
[1768295087494,3.1984594,141.64,141.6,0.72413002]
[1768295087874,3.2974594,141.64,141.6,0.72413002]
[1768295088491,10.35775831,141.64,141.6,0.72413002]
[1768295088688,3.1984594,141.63,141.58,3.92258942]
[1768295088893,3.80195098,141.63,141.58,0.72413002]
[1768295089989,3.80195098,141.63,141.59,0.72413002]
[1768295091557,3.2974594,141.64,141.59,3.92258942]
[1768295091787,3.2974594,141.64,141.59,0.72413002]
[1768295092083,3.1984594,141.63,141.59,0.72413002]
[1768295092285,3.2974594,141.64,141.59,0.72413002]
[1768295092686,10.86260197,141.63,141.59,0.72413002]
[1768295093789,0.1,141.7,141.63,0.72413002]
[1768295093995,1e-08,141.7,141.69,0.72413002]
[1768295095880,1e-08,141.7,141.69,7.78179111]
[1768295096181,1e-08,141.7,141.69,0.72413002]
[1768295096681,1e-08,141.7,141.69,3.92258942]
[1768295096865,1e-08,141.7,141.69,7.78179111]
[1768295097072,1e-08,141.7,141.69,10.98025051]
[1768295097269,1e-08,141.7,141.69,16.66568975]
[1768295097465,1e-08,141.7,141.69,0.72413002]
[1768295099196,1e-08,141.7,141.69,7.78179111]
[1768295099495,12.88000001,141.7,141.69,7.78179111]
[1768295099666,12.88000001,141.7,141.65,0.72413002]
[1768295099868,12.88000001,141.7,141.66,16.66684512]
[1768295100370,12.88000001,141.7,141.67,0.72413002]
[1768295100691,1e-08,141.7,141.68,9.60802866]
[1768295100991,12.155,141.69,141.68,16.66612409]
[1768295101496,10.705,141.69,141.68,16.66612409]
[1768295101722,10.705,141.69,141.68,15.94199407]
[1768295102070,10.705,141.69,141.68,8.88389864]
[1768295103294,10.705,141.69,141.68,15.94205787]
[1768295104582,10.705,141.69,141.68,8.88389864]
[1768295104985,10.705,141.69,141.67,0.71990412]
[1768295105193,10.705,141.69,141.67,9.60380276]
[1768295105395,10.705,141.69,141.67,8.88389864]
[1768295105706,13.54914033,141.68,141.64,0.71788146]
[1768295105909,12.88,141.67,141.66,8.88389864]
[1768295108008,12.88,141.67,141.65,16.66104594]
[1768295109004,7.72636951,141.7,141.65,16.66104594]
[1768295109311,13.54914033,141.69,141.65,16.66104594]
[1768295109492,0.66914033,141.69,141.65,16.66104594]
[1768295109880,12.88,141.68,141.65,16.66104594]
[1768295110088,12.88,141.68,141.65,7.7771473]
[1768295110298,12.88,141.68,141.65,9.6017801]
[1768295110601,0.66914033,141.67,141.64,8.88389864]
[1768295110814,0.66914033,141.67,141.63,7.06058538]
[1768295110989,0.66914033,141.69,141.66,8.88389864]
[1768295111194,12.88,141.68,141.66,8.88389864]
[1768295111690,1e-08,141.7,141.67,9.6017801]
[1768295111936,1e-08,141.7,141.69,9.6017801]
[1768295112208,12.16009588,141.71,141.7,0.71788146]
[1768295112517,12.88,141.72,141.7,8.88389864]
[1768295112996,12.88,141.72,141.7,15.94101264]
[1768295113201,0.66914033,141.75,141.71,8.88389864]
[1768295113512,0.66914033,141.75,141.73,5.46409279]
[1768295113513,12.88,141.74,141.73,5.46409279]
[1768295113895,0.66914033,141.75,141.73,5.46409279]
[1768295114217,12.88,141.74,141.73,5.46409279]
[1768295114510,12.88,141.74,141.72,5.46409279]
[1768295115020,12.88,141.74,141.72,12.52024626]
[1768295115317,12.88,141.74,141.71,12.52058352]
[1768295115525,12.88,141.74,141.71,5.46409279]
[1768295115696,13.56485806,141.74,141.68,17.6450072]
[1768295116012,13.56485806,141.74,141.7,5.46409279]
[1768295116594,20.6200883,141.74,141.7,5.46409279]
[1768295117222,13.56485806,141.74,141.7,5.46409279]
[1768295117520,13.56485806,141.74,141.68,17.6450072]
[1768295117521,13.56485806,141.74,141.71,5.46409279]
[1768295117723,5.46409279,141.77,141.71,5.46409279]
[1768295117925,12.88,141.74,141.71,5.46409279]
[1768295119298,12.88,141.74,141.71,2.04035288]
[1768295119697,12.88,141.74,141.66,17.64736071]
[1768295119698,0.68485806,141.73,141.66,17.64736071]
[1768295119900,0.68485806,141.72,141.66,17.64736071]
[1768295120098,12.88,141.71,141.67,7.05830736]
[1768295120298,12.88,141.71,141.63,7.06020175]
[1768295120299,0.68485806,141.69,141.63,7.06020175]
[1768295120517,0.68485806,141.67,141.62,7.06097242]
[1768295120730,0.68485806,141.65,141.59,7.06264566]
[1768295121015,0.68485806,141.65,141.6,2.04035288]
[1768295121216,12.88,141.65,141.62,2.04035288]
[1768295121513,0.68485806,141.69,141.64,2.04035288]
[1768295121720,13.56485806,141.69,141.66,2.04035288]
[1768295122703,13.56485806,141.69,141.65,7.05953224]
[1768295122906,13.56485806,141.69,141.66,2.04035288]
[1768295123218,13.56485806,141.69,141.65,7.05953224]
[1768295123512,13.56485806,141.69,141.65,12.52915566]
[1768295123905,13.56485806,141.69,141.65,5.46962342]
[1768295124102,3.66812325,141.81,141.72,0.68485806]
[1768295124321,2.73767126,141.82,141.8,5.46962342]
[1768295124504,0.1,141.84,141.81,5.46962342]
[1768295124695,0.1,141.84,141.83,5.46962342]
[1768295124899,12.98,141.84,141.79,7.73743266]
[1768295125104,12.98,141.84,141.81,5.46962342]
[1768295125305,0.1,141.84,141.82,5.46962342]
[1768295125506,12.38,141.83,141.82,5.46962342]
[1768295126921,0.78485806,141.84,141.82,5.46962342]
[1768295127123,12.88,141.83,141.82,5.46962342]
[1768295129308,12.88,141.83,141.79,24.6843924]
[1768295129507,12.88,141.83,141.82,5.46962342]
[1768295132025,13.56485806,141.83,141.78,0.70614199]
[1768295132332,0.68485806,141.82,141.78,5.46962342]
[1768295132522,0.68485806,141.81,141.78,5.46962342]
[1768295133307,37.55750603,141.83,141.72,0.70614199]
[1768295133308,5.60836394,141.79,141.72,0.70614199]
[1768295133531,19.0290203,141.78,141.73,5.46962342]
[1768295133925,13.55939688,141.78,141.74,5.46962342]
[1768295134420,13.55939688,141.78,141.75,5.46962342]
[1768295134618,12.88,141.77,141.75,5.46962342]
[1768295134938,12.88,141.77,141.73,13.23142772]
[1768295135913,7.05283599,141.79,141.74,6.18163552]
[1768295136113,18.31532615,141.8,141.75,5.46962342]
[1768295136114,12.88,141.78,141.75,5.46962342]
[1768295136311,7.73718798,141.8,141.75,6.18163552]
[1768295136510,12.88,141.79,141.75,6.18163552]
[1768295137136,12.88,141.79,141.75,0.7120121]
[1768295137434,5.46962342,141.77,141.72,0.7120121]
[1768295137624,13.55404693,141.76,141.68,0.7120121]
[1768295137826,19.02367035,141.76,141.71,6.18163552]
[1768295138431,19.02367035,141.76,141.71,13.23826698]
[1768295138640,19.02367035,141.76,141.68,17.6450026]
[1768295138641,7.0515783,141.82,141.76,0.7120121]
[1768295138841,12.85459657,141.79,141.78,5.46962342]
[1768295139545,12.88,141.8,141.78,5.46962342]
[1768295139721,12.88,141.8,141.79,5.3240229]
[1768295142839,0.099,141.79,141.77,4.89022394]
[1768295143029,0.099,141.79,141.76,5.46962342]
[1768295143233,0.099,141.79,141.74,7.76684812]
[1768295143429,0.099,141.79,141.77,5.46962342]
[1768295143741,12.88,141.78,141.77,5.46962342]
[1768295145954,12.88,141.78,141.75,0.7120121]
[1768295146156,12.88,141.78,141.75,5.46962342]
[1768295146358,12.88,141.78,141.76,5.46962342]
[1768295146561,12.88,141.77,141.76,5.46962342]
[1768295146747,12.88,141.77,141.74,0.7120121]
[1768295146932,12.88,141.76,141.74,0.7120121]
[1768295147257,12.88,141.76,141.75,5.46962342]
[1768295147455,7.05301788,141.79,141.75,5.46962342]
[1768295147646,12.88,141.78,141.75,5.46962342]
[1768295147956,18.34962342,141.78,141.73,5.46962342]
[1768295148434,18.34962342,141.78,141.72,6.18163552]
[1768295148855,7.05367849,141.77,141.73,5.46962342]
[1768295149154,12.88,141.76,141.71,5.46962342]
[1768295149843,24.68787472,141.77,141.72,5.46962342]
[1768295150042,7.05367849,141.77,141.72,5.46962342]
[1768295150240,17.6297337,141.81,141.74,5.46962342]
[1768295150435,17.6297337,141.81,141.73,7.05550216]
[1768295150436,17.6297337,141.81,141.75,5.46962342]
[1768295150639,12.88,141.8,141.75,5.46962342]
[1768295151044,19.93262235,141.8,141.74,0.7120121]
[1768295151364,7.05262235,141.8,141.75,5.46962342]
[1768295151577,12.88,141.79,141.75,5.46962342]
[1768295151865,12.88,141.78,141.77,5.46962342]
[1768295152062,12.88,141.78,141.76,6.18163552]
[1768295152768,12.88,141.77,141.76,6.18163552]
[1768295153262,102.7,141.83,141.77,0.7120121]
[1768295153480,12.88,141.82,141.77,0.7120121]
[1768295154147,12.88,141.82,141.77,6.18163552]
[1768295154349,7.05132994,141.82,141.77,7.7655784]
[1768295154549,12.88,141.81,141.77,13.23520182]
[1768295155766,12.88,141.8,141.77,13.23520182]
[1768295156352,12.88,141.8,141.77,7.7655784]
[1768295156558,12.88,141.8,141.77,13.23520182]
[1768295156768,7.05132994,141.82,141.77,13.23520182]
[1768295156975,12.88,141.81,141.77,13.23520182]
[1768295157159,12.88,141.8,141.77,7.7655784]
[1768295157358,12.88,141.8,141.77,13.23520182]
[1768295157858,12.88,141.8,141.77,7.7655784]
[1768295158062,12.88,141.79,141.77,7.7655784]
[1768295158368,12.88,141.78,141.77,7.7655784]
[1768295158878,12.88,141.78,141.75,6.18163552]
[1768295159068,12.88,141.78,141.74,6.18163552]
[1768295159464,12.88,141.78,141.75,0.7120121]
[1768295159879,12.88,141.78,141.73,7.76768133]
[1768295160060,12.88,141.78,141.74,0.7120121]
[1768295160261,19.93334258,141.78,141.74,0.7120121]
[1768295160472,25.402966,141.78,141.74,0.7120121]
[1768295160778,19.93334258,141.78,141.74,0.7120121]
[1768295162164,5.46962342,141.75,141.7,0.7120121]
[1768295162352,12.88,141.74,141.7,0.7120121]
[1768295162555,12.88,141.73,141.7,0.7120121]
[1768295162755,12.88,141.72,141.7,0.7120121]
[1768295163162,12.88,141.72,141.7,13.23875798]
[1768295163774,12.88,141.72,141.7,0.7120121]
[1768295164278,12.88,141.72,141.69,13.23916797]
[1768295164479,12.88,141.72,141.7,7.05714337]
[1768295165581,12.88,141.72,141.7,12.52676679]
[1768295165783,12.88,141.72,141.7,7.05714337]
[1768295165984,5.46962342,141.72,141.67,7.76853994]
[1768295166180,7.05417607,141.76,141.67,13.23821177]
[1768295166181,12.88,141.71,141.67,13.23821177]
[1768295166364,12.88,141.71,141.68,5.46962342]
[1768295166558,12.88,141.71,141.68,7.0580889]
[1768295167076,12.88,141.7,141.68,7.0580889]
[1768295168278,12.88,141.7,141.67,7.76853385]
[1768295168482,12.88,141.7,141.67,7.05847048]
[1768295169082,102.7,141.76,141.69,5.46962342]
[1768295169261,12.88,141.75,141.71,5.46962342]
[1768295169578,12.88,141.75,141.7,12.52678644]
[1768295169972,115.22391227,141.76,141.7,7.05716302]
[1768295170179,12.88,141.74,141.7,7.05716302]
[1768295171372,12.88,141.73,141.7,7.05716302]
[1768295171678,5.46962342,141.75,141.7,7.76722639]
[1768295171986,12.88,141.73,141.71,0.71006337]
[1768295172476,12.88,141.74,141.71,0.71006337]
[1768295172884,12.88,141.74,141.71,7.76671855]
[1768295173480,12.88,141.74,141.71,0.71006337]
[1768295175075,18.34962342,141.74,141.7,0.6758362]
[1768295175275,21.76421298,141.74,141.7,0.6758362]
[1768295175977,28.81938925,141.74,141.7,0.6758362]
[1768295176587,7.05517627,141.74,141.7,0.6758362]
[1768295176787,12.88,141.73,141.7,0.6758362]
[1768295176983,12.88,141.73,141.69,7.73334534]
[1768295177292,3.19083198,141.71,141.66,0.6758362]
[1768295177466,12.88,141.7,141.66,0.6758362]
[1768295177984,16.07083198,141.7,141.66,0.6758362]
[1768295178367,12.88,141.7,141.66,0.6758362]
[1768295178866,12.88,141.7,141.66,7.73498055]
[1768295179587,12.88,141.7,141.67,0.6758362]
[1768295180090,21.76868052,141.7,141.67,0.6758362]
[1768295181185,12.88,141.69,141.67,0.6758362]
[1768295182581,12.88,141.69,141.66,7.05910542]
[1768295182795,12.88,141.69,141.66,0.6758362]
[1768295183791,12.88,141.69,141.63,17.65062522]
[1768295183792,8.88868052,141.68,141.64,0.6758362]
[1768295183993,8.82868054,141.68,141.64,0.6758362]
[1768295184499,8.88868052,141.66,141.6,0.6758362]
[1768295184803,21.76868052,141.65,141.62,0.6758362]
[1768295185096,8.88868052,141.64,141.62,0.6758362]
[1768295185302,12.88,141.65,141.62,0.6758362]
[1768295185597,12.88,141.65,141.6,7.73778717]
[1768295185898,12.88,141.65,141.61,0.6758362]
[1768295185899,21.76868052,141.65,141.61,0.6758362]
[1768295186095,12.88,141.65,141.61,0.6758362]
[1768295186291,12.88,141.64,141.59,7.73845031]
[1768295186601,21.76868052,141.64,141.59,7.73845031]
[1768295187799,28.82901781,141.64,141.59,7.73845031]
[1768295188404,28.82901781,141.64,141.59,0.6758362]
[1768295188599,12.88,141.63,141.59,7.73837105]
[1768295188801,12.88,141.63,141.59,0.6758362]
[1768295189101,12.88,141.63,141.6,0.6758362]
[1768295190299,12.88,141.63,141.61,0.6758362]
[1768295191010,15.94840605,141.65,141.6,7.06211655]
[1768295191304,12.88,141.64,141.6,7.06211655]
[1768295191780,17.64580109,141.68,141.6,7.73795275]
[1768295191986,8.88868052,141.66,141.6,16.62663327]
[1768295192185,8.88868052,141.66,141.61,0.6758362]
[1768295192386,12.88,141.65,141.62,0.6758362]
[1768295193297,28.82842429,141.65,141.62,0.6758362]
[1768295194800,19.93974377,141.65,141.62,0.6758362]
[1768295195107,28.82842429,141.65,141.62,0.6758362]
[1768295195900,19.93974377,141.65,141.62,0.6758362]
[1768295196107,28.82842429,141.65,141.62,0.6758362]
[1768295196700,12.88,141.64,141.62,0.6758362]
[1768295198107,12.88,141.63,141.62,0.6758362]
[1768295198724,12.88,141.63,141.6,0.65921217]
[1768295199495,23.13447799,141.63,141.6,0.65921217]
[1768295199695,3.19378732,141.62,141.57,0.65921217]
[1768295200003,3.19378732,141.62,141.58,0.65921217]
[1768295200897,7.06150455,141.62,141.58,0.65921217]
[1768295201098,3.19378732,141.61,141.58,0.65921217]
[1768295201409,12.88,141.6,141.58,0.65921217]
[1768295202614,12.88,141.6,141.56,0.85921217]
[1768295202800,16.07378732,141.6,141.57,0.65921217]
[1768295203205,23.13594725,141.6,141.57,0.65921217]
[1768295203512,12.88,141.6,141.57,0.65921217]
[1768295203816,10.25552863,141.61,141.57,0.65921217]
[1768295203817,12.88,141.61,141.59,0.65921217]
[1768295204618,12.88,141.62,141.59,0.65921217]
[1768295208909,7.06032464,141.64,141.6,0.65921217]
[1768295209108,12.9,141.63,141.6,0.65921217]
[1768295211203,19.96065499,141.63,141.6,0.65921217]
[1768295215520,23.15444231,141.63,141.6,0.65921217]
[1768295217634,19.96065499,141.63,141.6,0.65921217]
[1768295220420,17.6498793,141.65,141.6,0.65921217]
[1768295220753,12.999,141.69,141.64,3.19378732]
[1768295220933,16.19278732,141.69,141.63,3.19378732]
[1768295221714,7.71176927,141.68,141.63,3.19378732]
[1768295222115,7.15674309,141.69,141.65,3.19378732]
[1768295222333,7.15674309,141.69,141.59,6.6801107]
[1768295222334,3.29833342,141.67,141.59,6.6801107]
[1768295222539,3.19378732,141.64,141.59,3.19378732]
[1768295222720,3.19378732,141.64,141.59,0.65921217]
[1768295222920,3.30376916,141.65,141.6,0.65921217]
[1768295224444,12.32997664,141.64,141.6,0.65921217]
[1768295224614,7.06052837,141.64,141.6,0.65921217]
[1768295224930,10.89705371,141.64,141.6,0.65921217]
[1768295225439,28.54743495,141.64,141.6,0.65921217]
[1768295226817,7.70326639,141.64,141.6,0.65921217]
[1768295227014,7.06052837,141.64,141.6,0.65921217]
[1768295227317,5.2779127,141.63,141.6,0.65921217]
[1768295227518,7.06052837,141.64,141.6,0.65921217]
[1768295227842,5.2779127,141.63,141.6,0.65921217]
[1768295228141,7.06052837,141.64,141.6,0.65921217]
[1768295228327,12.34255152,141.63,141.6,0.65921217]
[1768295228529,7.06077069,141.63,141.6,0.65921217]
[1768295229331,7.06015249,141.64,141.6,0.65921217]
[1768295229643,5.2843952,141.63,141.6,0.65921217]
[1768295229835,7.06015249,141.64,141.6,0.65921217]
[1768295230032,5.28439641,141.63,141.6,0.65921217]
[1768295230218,10.35293981,141.64,141.6,0.65921217]
[1768295230417,5.28551703,141.63,141.6,0.65921217]
[1768295230651,10.35293981,141.64,141.6,0.65921217]
[1768295230945,5.28569154,141.63,141.6,0.65921217]
[1768295231142,28.00332105,141.64,141.6,0.65921217]
[1768295231350,7.06114955,141.62,141.58,0.65938324]
[1768295231837,10.90824054,141.63,141.58,0.65938324]
[1768295232148,5.28596709,141.62,141.59,3.85317056]
[1768295232346,7.06084318,141.63,141.59,0.65938324]
[1768295232541,5.28624958,141.62,141.59,0.65938324]
[1768295232743,5.28624958,141.61,141.59,0.65938324]
[1768295232945,7.15984318,141.63,141.59,3.85317056]
[1768295233250,5.28624958,141.62,141.59,0.65938324]
[1768295233449,7.15984318,141.63,141.59,0.65938324]
[1768295233636,5.28662105,141.62,141.59,0.65938324]
[1768295233839,7.15984318,141.63,141.59,0.65938324]
[1768295234035,5.28665577,141.62,141.59,0.65938324]
[1768295234226,5.28665577,141.61,141.59,0.65938324]
[1768295234428,10.3536305,141.63,141.59,0.65938324]
[1768295234725,105.89378732,141.68,141.59,0.65938324]
[1768295234726,0.1,141.84,141.7,0.66293054]
[1768295234924,0.1,141.84,141.8,0.66293054]
[1768295235142,12.9,141.83,141.8,3.19378732]
[1768295235342,12.9,141.83,141.77,15.13409891]
[1768295235537,12.9,141.83,141.77,7.05367849]
[1768295235848,12.9,141.83,141.79,3.19378732]
[1768295236533,12.88,141.82,141.81,3.19378732]
[1768295237126,12.88,141.82,141.8,3.19378732]
[1768295237347,12.88,141.82,141.81,5.45811764]
[1768295238941,12.88,141.82,141.8,7.0518615]
[1768295238942,12.88,141.82,141.79,7.7155313]
[1768295239144,0.07461184,141.84,141.81,5.45811764]
[1768295239349,12.88,141.83,141.81,5.45811764]
[1768295239756,12.88,141.83,141.8,5.45811764]
[1768295243244,0.07461184,141.84,141.82,5.45811764]
[1768295243650,0.07461184,141.84,141.83,5.45811764]
[1768295243958,0.07461184,141.84,141.83,6.12104818]
[1768295244162,12.95461184,141.84,141.83,6.12104818]
[1768295244532,12.88,141.84,141.83,6.12104818]
[1768295245057,0.1,141.85,141.83,6.12104818]
[1768295245058,7.04782978,141.89,141.84,0.66293054]
[1768295245261,0.0990099,141.88,141.85,5.45811764]
[1768295245442,12.88,141.87,141.85,5.45811764]
[1768295245846,12.88,141.87,141.84,5.45811764]
[1768295246250,12.88,141.86,141.85,5.45811764]
[1768295247238,12.88,141.86,141.83,5.45811764]
[1768295247662,20.0284492,141.86,141.81,0.66293054]
[1768295247861,20.0284492,141.86,141.82,5.45811764]
[1768295248246,25.48656684,141.86,141.82,5.45811764]
[1768295248968,20.0284492,141.86,141.82,5.45811764]
[1768295249647,19.92942959,141.86,141.82,6.12104818]
[1768295251069,19.92942959,141.86,141.75,17.63597927]
[1768295251070,0.71842797,141.83,141.75,17.63597927]
[1768295251367,0.71842797,141.83,141.66,102.25261807]
[1768295251368,5.60687133,141.79,141.74,5.45811764]
[1768295251672,12.88,141.78,141.74,5.45811764]
[1768295252252,19.93356451,141.78,141.67,24.70530104]
[1768295252563,25.39168215,141.78,141.73,5.45811764]
[1768295253064,11.43,141.77,141.76,0.66293054]
[1768295253262,11.43,141.77,141.75,5.45811764]
[1768295253663,12.88,141.76,141.75,5.45811764]
[1768295254056,12.85000001,141.76,141.75,5.45811764]
[1768295254372,7.77787862,141.78,141.67,66.67869895]
[1768295254541,7.77787862,141.78,141.73,5.45811764]
[1768295254542,12.88,141.76,141.73,5.45811764]
[1768295254872,13.23599626,141.78,141.73,5.45811764]
[1768295255167,12.88,141.75,141.73,5.45811764]
[1768295255767,12.88,141.75,141.73,12.51357042]
[1768295255962,12.88,141.75,141.73,7.05545278]
[1768295256153,12.88,141.75,141.73,5.45811764]
[1768295256469,13.55693556,141.74,141.72,7.05603592]
[1768295256672,12.88,141.73,141.72,12.51415356]
[1768295256855,13.55693556,141.74,141.72,12.51415356]
[1768295257168,0.67693556,141.74,141.72,12.51415356]
[1768295257376,13.55693556,141.74,141.72,9.09607755]
[1768295257671,2.04004163,141.77,141.72,6.33103592]
[1768295257846,12.88,141.76,141.72,8.37107755]
[1768295258369,12.88,141.76,141.73,0.68679937]
[1768295259474,12.88,141.75,141.73,0.68679937]
[1768295259775,12.88,141.74,141.73,0.68679937]
[1768295260143,7.73022095,141.78,141.73,0.68679937]
[1768295260356,14.92004163,141.77,141.73,0.68679937]
[1768295261174,12.88,141.76,141.73,0.68679937]
[1768295261472,2.71697719,141.77,141.73,0.68679937]
[1768295261672,12.88,141.76,141.73,0.68679937]
[1768295262464,2.71697719,141.77,141.73,0.68679937]
[1768295262670,12.88,141.76,141.73,0.68679937]
[1768295263361,12.88,141.75,141.73,0.68679937]
[1768295263868,0.67693556,141.78,141.73,9.0957074]
[1768295264073,12.88,141.75,141.73,9.0957074]
[1768295264754,12.88,141.75,141.74,2.04004163]
[1768295265871,12.88,141.75,141.69,24.70181381]
[1768295266050,12.88,141.75,141.73,2.04004163]
[1768295266455,12.88,141.75,141.69,24.70181381]
[1768295266655,12.88,141.75,141.71,2.04004163]
[1768295266856,2.04004163,141.76,141.71,2.04004163]
[1768295267175,12.88,141.75,141.72,2.04004163]
[1768295267469,13.55693556,141.75,141.69,24.70181381]
[1768295267674,0.67693556,141.74,141.71,2.04004163]
[1768295267877,0.67693556,141.74,141.71,9.09625965]
[1768295268083,12.88,141.75,141.71,9.09625965]
[1768295268877,13.55693556,141.75,141.71,9.09625965]
[1768295269069,13.55693556,141.75,141.71,7.05621802]
[1768295269375,13.55693556,141.75,141.72,2.04004163]
[1768295270881,0.67693556,141.78,141.69,59.99011926]
[1768295271054,0.67693556,141.8,141.76,2.04004163]